[Event "Early-Titled-Tuesday-Blitz-February-27-2024"]
[Site "Chess.com"]
[Date "2024.02.27"]
[Round "4"]
[White "Witik"]
[Black "GMKrikor"]
[Result "0-1"]
[WhiteElo "2714"]
[BlackElo "2934"]
[TimeControl "180+1"]
[EndTime "8:38:00 PST"]
[Termination "GMKrikor won by resignation"]

1. d4 {[%clk 0:02:59.7]} 1... Nf6 {[%clk 0:03:00]} 2. Bf4 {[%clk 0:02:59.7]}
2... c5 {[%clk 0:02:56.2]} 3. e3 {[%clk 0:02:59.7]} 3... g6 {[%clk 0:02:56.3]}
4. Nf3 {[%clk 0:02:59.2]} 4... Bg7 {[%clk 0:02:56.8]} 5. c3 {[%clk 0:02:53.7]}
5... O-O {[%clk 0:02:54.5]} 6. Nbd2 {[%clk 0:02:52.8]} 6... d6 {[%clk
0:02:48.9]} 7. h3 {[%clk 0:02:52.8]} 7... cxd4 {[%clk 0:02:46.1]} 8. exd4 {[%clk
0:02:49.4]} 8... Nc6 {[%clk 0:02:46.8]} 9. Bh2 {[%clk 0:02:49.1]} 9... e5 {[%clk
0:02:44.2]} 10. dxe5 {[%clk 0:02:45.9]} 10... dxe5 {[%clk 0:02:45.1]} 11. Nc4
{[%clk 0:02:46]} 11... e4 {[%clk 0:02:36.7]} 12. Nfd2 {[%clk 0:02:36.5]} 12...
Re8 {[%clk 0:02:27.2]} 13. Be2 {[%clk 0:02:35.3]} 13... Bf8 {[%clk 0:01:47.4]}
14. O-O {[%clk 0:02:29.8]} 14... Be6 {[%clk 0:01:47.3]} 15. Ne3 {[%clk
0:02:24.4]} 15... Qe7 {[%clk 0:01:28.2]} 16. Qc2 {[%clk 0:02:15]} 16... Bd7
{[%clk 0:01:20.4]} 17. Ndc4 {[%clk 0:02:11.9]} 17... Be6 {[%clk 0:01:06]} 18.
Nd6 {[%clk 0:01:53.8]} 18... Red8 {[%clk 0:01:03.4]} 19. Nxe4 {[%clk 0:01:53.5]}
19... Nd5 {[%clk 0:01:02.2]} 20. Nxd5 {[%clk 0:01:02.4]} 20... Bxd5 {[%clk
0:01:03.1]} 21. Bf3 {[%clk 0:01:02.8]} 21... Ne5 {[%clk 0:01:03.6]} 22. Bxe5
{[%clk 0:01:02.9]} 22... Qxe5 {[%clk 0:01:04.5]} 23. Rfe1 {[%clk 0:00:59.1]}
23... Qf4 {[%clk 0:01:04.4]} 24. Rad1 {[%clk 0:00:53.9]} 24... Bc6 {[%clk
0:01:01.8]} 25. Nd2 {[%clk 0:00:45.4]} 25... Bc5 {[%clk 0:00:31.2]} 26. b4
{[%clk 0:00:24.9]} 26... Bb6 {[%clk 0:00:21.1]} 27. Ne4 {[%clk 0:00:09.5]} 27...
Kg7 {[%clk 0:00:11.7]} 28. Rxd8 {[%clk 0:00:08.2]} 28... Rxd8 {[%clk 0:00:12.3]}
29. c4 {[%clk 0:00:06.3]} 29... Bd4 {[%clk 0:00:11.5]} 30. Nd2 {[%clk
0:00:04.4]} 30... Bxf2+ {[%clk 0:00:09.7]} 31. Kf1 {[%clk 0:00:04.3]} 31... Rxd2
{[%clk 0:00:08.6]} 32. Qc3+ {[%clk 0:00:04.4]} 32... Bd4 {[%clk 0:00:09]} 0-1

[Event "Early-Titled-Tuesday-Blitz-February-27-2024"]
[Site "Chess.com"]
[Date "2024.02.27"]
[Round "4"]
[White "matagordo"]
[Black "Schattman"]
[Result "0-1"]
[WhiteElo "2222"]
[BlackElo "2434"]
[TimeControl "180+1"]
[EndTime "8:38:00 PST"]
[Termination "Schattman won on time"]

1. d4 {[%clk 0:03:00]} 1... g6 {[%clk 0:02:54.1]} 2. Bf4 {[%clk 0:02:57.7]} 2...
Bg7 {[%clk 0:02:53.1]} 3. Nc3 {[%clk 0:02:58]} 3... d6 {[%clk 0:02:53.6]} 4. e4
{[%clk 0:02:58.1]} 4... Nd7 {[%clk 0:02:53.5]} 5. Nf3 {[%clk 0:02:36.5]} 5... e5
{[%clk 0:02:52.5]} 6. Be3 {[%clk 0:02:37.1]} 6... Ne7 {[%clk 0:02:50.5]} 7. Qd2
{[%clk 0:02:37.1]} 7... exd4 {[%clk 0:02:44.2]} 8. Nxd4 {[%clk 0:02:36.6]} 8...
Ne5 {[%clk 0:02:42.7]} 9. f3 {[%clk 0:02:33.6]} 9... O-O {[%clk 0:02:32.7]} 10.
O-O-O {[%clk 0:02:32.9]} 10... a6 {[%clk 0:02:28.5]} 11. Bh6 {[%clk 0:02:31.2]}
11... b5 {[%clk 0:02:25]} 12. h4 {[%clk 0:02:31]} 12... b4 {[%clk 0:02:15.3]}
13. Nb1 {[%clk 0:02:31]} 13... Bxh6 {[%clk 0:01:58.5]} 14. Qxh6 {[%clk
0:02:29.8]} 14... f6 {[%clk 0:01:58.9]} 15. h5 {[%clk 0:02:24.7]} 15... g5
{[%clk 0:01:56.7]} 16. f4 {[%clk 0:01:40.1]} 16... Ng4 {[%clk 0:01:48.3]} 17.
Bc4+ {[%clk 0:01:12.7]} 17... Kh8 {[%clk 0:01:46.4]} 18. Qg6 {[%clk 0:00:28.1]}
18... Nxg6 {[%clk 0:01:18.7]} 19. hxg6 {[%clk 0:00:29]} 19... h6 {[%clk
0:01:18.6]} 20. f5 {[%clk 0:00:21.3]} 20... Kg7 {[%clk 0:01:13.1]} 21. Rdf1
{[%clk 0:00:09.1]} 21... Re8 {[%clk 0:01:09.6]} 22. Be2 {[%clk 0:00:07.2]} 22...
Ne5 {[%clk 0:01:01.1]} 23. Rh5 {[%clk 0:00:04.4]} 23... Rh8 {[%clk 0:01:00.2]}
24. Rfh1 {[%clk 0:00:04.5]} 24... Bd7 {[%clk 0:00:56.2]} 25. Nd2 {[%clk
0:00:05]} 25... c5 {[%clk 0:00:49.2]} 26. N4f3 {[%clk 0:00:02.3]} 26... Nxf3
{[%clk 0:00:43.5]} 27. Bxf3 {[%clk 0:00:03.2]} 27... Rc8 {[%clk 0:00:36.4]} 28.
Nf1 {[%clk 0:00:03.3]} 28... Qe7 {[%clk 0:00:30.7]} 29. Ne3 {[%clk 0:00:03.3]}
29... Bc6 {[%clk 0:00:28]} 30. Ng4 {[%clk 0:00:03.3]} 30... Bxe4 {[%clk
0:00:25.7]} 31. Nxh6 {[%clk 0:00:01.8]} 31... Bxf3 {[%clk 0:00:22]} 32. gxf3
{[%clk 0:00:02.4]} 32... Qe3+ {[%clk 0:00:21.2]} 33. Kb1 {[%clk 0:00:02.1]}
33... Qxf3 {[%clk 0:00:18.5]} 34. Nf7 {[%clk 0:00:01.3]} 34... Rxh5 {[%clk
0:00:16.3]} 0-1

[Event "Early-Titled-Tuesday-Blitz-February-27-2024"]
[Site "Chess.com"]
[Date "2024.02.27"]
[Round "4"]
[White "ASVZ"]
[Black "joshdaruca"]
[Result "1-0"]
[WhiteElo "2572"]
[BlackElo "2766"]
[TimeControl "180+1"]
[EndTime "8:38:03 PST"]
[Termination "ASVZ won by resignation"]

1. e4 {[%clk 0:02:56.3]} 1... c5 {[%clk 0:02:59.6]} 2. c3 {[%clk 0:02:56.5]}
2... d5 {[%clk 0:02:59.1]} 3. exd5 {[%clk 0:02:52.2]} 3... Qxd5 {[%clk 0:03:00]}
4. d4 {[%clk 0:02:53]} 4... Nf6 {[%clk 0:03:00.3]} 5. Nf3 {[%clk 0:02:53.5]}
5... Nc6 {[%clk 0:02:59.5]} 6. dxc5 {[%clk 0:02:53.6]} 6... Qxd1+ {[%clk
0:02:55.5]} 7. Kxd1 {[%clk 0:02:54.5]} 7... Bg4 {[%clk 0:02:55.6]} 8. Be3 {[%clk
0:02:52.5]} 8... O-O-O+ {[%clk 0:02:53]} 9. Kc1 {[%clk 0:02:52.8]} 9... e5
{[%clk 0:02:50.5]} 10. Bb5 {[%clk 0:02:52.8]} 10... Bxf3 {[%clk 0:02:28.8]} 11.
gxf3 {[%clk 0:02:52.8]} 11... Nd5 {[%clk 0:02:29.7]} 12. Bxc6 {[%clk 0:02:53]}
12... bxc6 {[%clk 0:02:30.6]} 13. b4 {[%clk 0:02:50.4]} 13... a5 {[%clk
0:02:28.1]} 14. a3 {[%clk 0:02:50.2]} 14... Be7 {[%clk 0:02:22]} 15. Kc2 {[%clk
0:02:48.7]} 15... f5 {[%clk 0:02:15.2]} 16. Rg1 {[%clk 0:02:34.8]} 16... g6
{[%clk 0:01:53]} 17. c4 {[%clk 0:02:28.3]} 17... Nxe3+ {[%clk 0:01:48.8]} 18.
fxe3 {[%clk 0:02:28.7]} 18... Bh4 {[%clk 0:01:49.5]} 19. Rg2 {[%clk 0:02:03.5]}
19... Rd7 {[%clk 0:01:23.7]} 20. Nc3 {[%clk 0:01:50.7]} 20... Rhd8 {[%clk
0:01:19.4]} 21. Rd1 {[%clk 0:01:50.4]} 21... Rxd1 {[%clk 0:01:16]} 22. Nxd1
{[%clk 0:01:50.8]} 22... Be1 {[%clk 0:01:15.1]} 23. Nc3 {[%clk 0:01:48.9]} 23...
Kc7 {[%clk 0:00:50.8]} 24. Re2 {[%clk 0:01:48.9]} 24... Bxc3 {[%clk 0:00:51]}
25. Kxc3 {[%clk 0:01:49.1]} 25... axb4+ {[%clk 0:00:51]} 26. axb4 {[%clk
0:01:49.5]} 26... Ra8 {[%clk 0:00:51.9]} 27. b5 {[%clk 0:01:46.5]} 27... Ra3+
{[%clk 0:00:48.2]} 28. Kb4 {[%clk 0:01:46.9]} 28... Rd3 {[%clk 0:00:48.6]} 29.
h4 {[%clk 0:01:28.8]} 29... Kb7 {[%clk 0:00:21.5]} 30. Re1 {[%clk 0:01:26.2]}
30... Kc7 {[%clk 0:00:09.3]} 31. h5 {[%clk 0:00:50.4]} 31... g5 {[%clk 0:00:08]}
32. h6 {[%clk 0:00:47]} 32... Kb7 {[%clk 0:00:03.3]} 33. Rg1 {[%clk 0:00:45.6]}
33... Rxe3 {[%clk 0:00:03.7]} 34. Rxg5 {[%clk 0:00:45.7]} 34... Rxf3 {[%clk
0:00:04.6]} 35. Rg7+ {[%clk 0:00:46]} 35... Kc8 {[%clk 0:00:05.5]} 36. Ka5
{[%clk 0:00:45.1]} 36... e4 {[%clk 0:00:04.8]} 37. Kb6 {[%clk 0:00:45.2]} 37...
Rh3 {[%clk 0:00:04.4]} 38. Rxh7 {[%clk 0:00:45.4]} 38... e3 {[%clk 0:00:04.8]}
39. Kxc6 {[%clk 0:00:45]} 39... Kd8 {[%clk 0:00:05.5]} 40. Kd6 {[%clk
0:00:43.7]} 40... Ke8 {[%clk 0:00:05.9]} 41. Re7+ {[%clk 0:00:43.3]} 41... Kf8
{[%clk 0:00:06.5]} 42. h7 {[%clk 0:00:43.6]} 42... e2 {[%clk 0:00:06.9]} 43.
Rxe2 {[%clk 0:00:42.8]} 43... Rh6+ {[%clk 0:00:07.4]} 44. Re6 {[%clk 0:00:41.6]}
44... Rxh7 {[%clk 0:00:08.3]} 45. Rf6+ {[%clk 0:00:40.6]} 45... Rf7 {[%clk
0:00:08.5]} 46. Rxf7+ {[%clk 0:00:40.1]} 46... Kxf7 {[%clk 0:00:09.4]} 1-0

[Event "Early-Titled-Tuesday-Blitz-February-27-2024"]
[Site "Chess.com"]
[Date "2024.02.27"]
[Round "4"]
[White "Alina_Gumerovna"]
[Black "Arlo2024"]
[Result "0-1"]
[WhiteElo "2086"]
[BlackElo "2296"]
[TimeControl "180+1"]
[EndTime "8:38:06 PST"]
[Termination "Arlo2024 won on time"]

1. e4 {[%clk 0:02:59.3]} 1... e6 {[%clk 0:02:59.2]} 2. d4 {[%clk 0:02:58.5]}
2... d5 {[%clk 0:02:59.6]} 3. exd5 {[%clk 0:02:56]} 3... exd5 {[%clk 0:02:59.2]}
4. Bd3 {[%clk 0:02:54.5]} 4... Nc6 {[%clk 0:02:59.7]} 5. c3 {[%clk 0:02:50.7]}
5... Bd6 {[%clk 0:02:59.3]} 6. Qf3 {[%clk 0:02:49.3]} 6... Nge7 {[%clk
0:02:57.6]} 7. Ne2 {[%clk 0:02:48.3]} 7... Be6 {[%clk 0:02:56.8]} 8. Bf4 {[%clk
0:02:45]} 8... Qd7 {[%clk 0:02:54.3]} 9. Bxd6 {[%clk 0:02:45.2]} 9... Qxd6
{[%clk 0:02:55.2]} 10. Nf4 {[%clk 0:02:44.9]} 10... O-O-O {[%clk 0:02:53.2]} 11.
Nd2 {[%clk 0:02:43.2]} 11... Bf5 {[%clk 0:02:51.4]} 12. O-O-O {[%clk 0:02:41.3]}
12... Bxd3 {[%clk 0:02:48.4]} 13. Nxd3 {[%clk 0:02:42.2]} 13... f6 {[%clk
0:02:45.6]} 14. Rhe1 {[%clk 0:02:41]} 14... Ng6 {[%clk 0:02:40.6]} 15. g3 {[%clk
0:02:40.1]} 15... Rhe8 {[%clk 0:02:39.9]} 16. Nb3 {[%clk 0:01:31.1]} 16... b6
{[%clk 0:02:39.6]} 17. Na1 {[%clk 0:01:30.9]} 17... Na5 {[%clk 0:02:34.6]} 18.
Nc2 {[%clk 0:01:28.1]} 18... Nc4 {[%clk 0:02:23.2]} 19. Ncb4 {[%clk 0:01:20.3]}
19... c6 {[%clk 0:02:08.6]} 20. b3 {[%clk 0:01:15]} 20... Na3 {[%clk 0:01:59.9]}
21. Kb2 {[%clk 0:01:11.9]} 21... Nb5 {[%clk 0:01:59.7]} 22. a4 {[%clk
0:00:59.9]} 22... Nc7 {[%clk 0:01:49.7]} 23. h4 {[%clk 0:00:59.4]} 23... a5
{[%clk 0:01:41.3]} 24. Nc2 {[%clk 0:00:56.1]} 24... Kb7 {[%clk 0:01:41.2]} 25.
b4 {[%clk 0:00:51.5]} 25... axb4 {[%clk 0:01:35.1]} 26. Ndxb4 {[%clk 0:00:42.9]}
26... Rxe1 {[%clk 0:01:29.6]} 27. Rxe1 {[%clk 0:00:42.8]} 27... Ra8 {[%clk
0:01:29.9]} 28. Kb3 {[%clk 0:00:37.6]} 28... Ne7 {[%clk 0:01:19.7]} 29. Na3
{[%clk 0:00:08.9]} 29... c5 {[%clk 0:01:13.2]} 30. dxc5 {[%clk 0:00:06.8]} 30...
bxc5 {[%clk 0:01:14.1]} 31. Nbc2 {[%clk 0:00:03.7]} 31... c4+ {[%clk 0:01:12.5]}
32. Ka2 {[%clk 0:00:03.8]} 32... Rxa4 {[%clk 0:01:12.2]} 33. Rb1+ {[%clk
0:00:04.1]} 33... Ka8 {[%clk 0:00:58.1]} 34. Kb2 {[%clk 0:00:03.9]} 34... Nc6
{[%clk 0:00:52.9]} 35. Qe3 {[%clk 0:00:03.1]} 35... Ne5 {[%clk 0:00:48.4]} 36.
Kc1 {[%clk 0:00:02.3]} 36... Rxa3 {[%clk 0:00:40.8]} 37. Nxa3 {[%clk 0:00:01.4]}
37... Qxa3+ {[%clk 0:00:41.7]} 38. Kc2 {[%clk 0:00:01.5]} 38... Qa7 {[%clk
0:00:27.5]} 0-1

[Event "Early-Titled-Tuesday-Blitz-February-27-2024"]
[Site "Chess.com"]
[Date "2024.02.27"]
[Round "4"]
[White "GHANDEEVAM2003"]
[Black "GMSrinath"]
[Result "1-0"]
[WhiteElo "3025"]
[BlackElo "2799"]
[TimeControl "180+1"]
[EndTime "8:38:07 PST"]
[Termination "GHANDEEVAM2003 won by resignation"]

1. a3 {[%clk 0:03:00.9]} 1... e5 {[%clk 0:02:59.5]} 2. e4 {[%clk 0:03:00]} 2...
Nf6 {[%clk 0:02:59.2]} 3. Nc3 {[%clk 0:02:58.3]} 3... Nc6 {[%clk 0:02:59.8]} 4.
Nf3 {[%clk 0:02:58.1]} 4... d5 {[%clk 0:02:59.4]} 5. exd5 {[%clk 0:02:59]} 5...
Nxd5 {[%clk 0:03:00]} 6. Bb5 {[%clk 0:02:54.3]} 6... Nxc3 {[%clk 0:03:00.5]} 7.
bxc3 {[%clk 0:02:52.7]} 7... Bd6 {[%clk 0:03:01.1]} 8. O-O {[%clk 0:02:52.4]}
8... O-O {[%clk 0:03:01.7]} 9. d4 {[%clk 0:02:52.8]} 9... exd4 {[%clk
0:02:56.6]} 10. cxd4 {[%clk 0:02:53.7]} 10... Ne7 {[%clk 0:02:54.9]} 11. Re1
{[%clk 0:02:51.3]} 11... Bg4 {[%clk 0:02:52]} 12. h3 {[%clk 0:02:50.4]} 12...
Bh5 {[%clk 0:02:52.5]} 13. Bd3 {[%clk 0:02:48.4]} 13... Bg6 {[%clk 0:02:44.1]}
14. c4 {[%clk 0:02:43.5]} 14... c6 {[%clk 0:02:40.4]} 15. Bb2 {[%clk 0:02:40.3]}
15... Bxd3 {[%clk 0:02:36.3]} 16. Qxd3 {[%clk 0:02:41.2]} 16... Ng6 {[%clk
0:02:36.9]} 17. g3 {[%clk 0:02:39.5]} 17... Qd7 {[%clk 0:02:29.3]} 18. Kg2
{[%clk 0:02:23.5]} 18... b5 {[%clk 0:02:25.7]} 19. cxb5 {[%clk 0:02:19.2]} 19...
cxb5 {[%clk 0:02:26.6]} 20. d5 {[%clk 0:02:19.9]} 20... Rfe8 {[%clk 0:02:27.2]}
21. Qc3 {[%clk 0:02:01.2]} 21... f6 {[%clk 0:02:02.7]} 22. Nd4 {[%clk
0:01:55.1]} 22... Be5 {[%clk 0:01:50.1]} 23. Qb3 {[%clk 0:01:55.4]} 23... Red8
{[%clk 0:01:27.7]} 24. Nc6 {[%clk 0:01:15.4]} 24... Qxd5+ {[%clk 0:00:48.9]} 25.
Qxd5+ {[%clk 0:01:16.3]} 25... Rxd5 {[%clk 0:00:49.5]} 26. Bxe5 {[%clk
0:01:17.1]} 26... fxe5 {[%clk 0:00:50.1]} 27. h4 {[%clk 0:01:17.8]} 27... h5
{[%clk 0:00:47.4]} 28. Rac1 {[%clk 0:01:15.1]} 28... a6 {[%clk 0:00:44.4]} 29.
Nb4 {[%clk 0:01:05.7]} 29... Rd6 {[%clk 0:00:42.9]} 30. Rc7 {[%clk 0:01:06.3]}
30... Rf8 {[%clk 0:00:41.3]} 31. Re2 {[%clk 0:01:07]} 31... Rff6 {[%clk
0:00:30.8]} 32. Ra7 {[%clk 0:01:01.2]} 32... Rf7 {[%clk 0:00:23.7]} 33. Ra8+
{[%clk 0:00:54.7]} 33... Rf8 {[%clk 0:00:24.3]} 34. Rxa6 {[%clk 0:00:55.3]}
34... Rxa6 {[%clk 0:00:23.7]} 35. Nxa6 {[%clk 0:00:56.2]} 35... Ra8 {[%clk
0:00:24.3]} 36. Nc7 {[%clk 0:00:56.9]} 36... Rxa3 {[%clk 0:00:24.3]} 37. Nxb5
{[%clk 0:00:57.6]} 37... Rd3 {[%clk 0:00:24]} 38. Rc2 {[%clk 0:00:54.2]} 38...
Kf7 {[%clk 0:00:22.5]} 39. Rc7+ {[%clk 0:00:52.5]} 39... Kf6 {[%clk 0:00:22.6]}
40. Nc3 {[%clk 0:00:52.6]} 40... Rd4 {[%clk 0:00:14.9]} 41. Nb5 {[%clk
0:00:50.6]} 41... Rd5 {[%clk 0:00:13.2]} 42. Rc6+ {[%clk 0:00:50.7]} 42... Kf7
{[%clk 0:00:12.4]} 43. Nd6+ {[%clk 0:00:50.9]} 43... Ke6 {[%clk 0:00:08.8]} 44.
Nc8+ {[%clk 0:00:46.6]} 44... Kd7 {[%clk 0:00:05.9]} 45. Rxg6 {[%clk 0:00:47.5]}
45... Kxc8 {[%clk 0:00:06.8]} 46. Rxg7 {[%clk 0:00:48]} 46... e4 {[%clk
0:00:06.3]} 47. Re7 {[%clk 0:00:47]} 1-0

[Event "Early-Titled-Tuesday-Blitz-February-27-2024"]
[Site "Chess.com"]
[Date "2024.02.27"]
[Round "4"]
[White "PLAYER_2006_M"]
[Black "krzyzan94"]
[Result "1-0"]
[WhiteElo "3013"]
[BlackElo "2793"]
[TimeControl "180+1"]
[EndTime "8:38:07 PST"]
[Termination "PLAYER_2006_M won by resignation"]

1. e4 {[%clk 0:03:00.9]} 1... c5 {[%clk 0:02:58.2]} 2. Nf3 {[%clk 0:03:00.9]}
2... d6 {[%clk 0:02:57.7]} 3. d4 {[%clk 0:03:01]} 3... cxd4 {[%clk 0:02:58.6]}
4. Nxd4 {[%clk 0:03:01.7]} 4... Nf6 {[%clk 0:02:59]} 5. Nc3 {[%clk 0:03:02.4]}
5... a6 {[%clk 0:02:59.7]} 6. a3 {[%clk 0:03:03]} 6... g6 {[%clk 0:02:57.8]} 7.
f3 {[%clk 0:02:58.6]} 7... Bg7 {[%clk 0:02:57.9]} 8. Be3 {[%clk 0:02:59.1]} 8...
O-O {[%clk 0:02:57.3]} 9. Qd2 {[%clk 0:02:58.4]} 9... Nc6 {[%clk 0:02:54.1]} 10.
O-O-O {[%clk 0:02:53.7]} 10... Nxd4 {[%clk 0:02:26.8]} 11. Bxd4 {[%clk 0:02:53]}
11... b5 {[%clk 0:02:27]} 12. h4 {[%clk 0:02:53.2]} 12... Rb8 {[%clk 0:01:57.6]}
13. h5 {[%clk 0:02:28.6]} 13... b4 {[%clk 0:01:46.1]} 14. axb4 {[%clk
0:02:26.9]} 14... Rxb4 {[%clk 0:01:47]} 15. hxg6 {[%clk 0:02:24.7]} 15... fxg6
{[%clk 0:01:41.8]} 16. Nd5 {[%clk 0:02:01.7]} 16... Ra4 {[%clk 0:01:12.4]} 17.
b3 {[%clk 0:01:36]} 17... Rxd4 {[%clk 0:00:49.6]} 18. Qxd4 {[%clk 0:01:36.9]}
18... Nxd5 {[%clk 0:00:49.1]} 19. Qxd5+ {[%clk 0:01:34.9]} 19... e6 {[%clk
0:00:48.5]} 20. Qd2 {[%clk 0:01:12.9]} 20... Qf6 {[%clk 0:00:40.8]} 21. c3
{[%clk 0:01:13.1]} 21... Bb7 {[%clk 0:00:34.3]} 22. Kb2 {[%clk 0:01:11.9]} 22...
Rc8 {[%clk 0:00:33.5]} 23. Rc1 {[%clk 0:01:11.9]} 23... d5 {[%clk 0:00:29.9]}
24. Bd3 {[%clk 0:01:02.4]} 24... a5 {[%clk 0:00:26.9]} 25. Rhe1 {[%clk
0:00:59.2]} 25... dxe4 {[%clk 0:00:25.5]} 26. Bxe4 {[%clk 0:00:58.7]} 26... Rd8
{[%clk 0:00:16.9]} 27. Qe2 {[%clk 0:00:54.1]} 27... Bc8 {[%clk 0:00:11.6]} 28.
Bc6 {[%clk 0:00:53.1]} 28... h5 {[%clk 0:00:10.8]} 29. Rc2 {[%clk 0:00:52.4]}
29... Rd6 {[%clk 0:00:10.9]} 30. Ba4 {[%clk 0:00:52.1]} 30... Ba6 {[%clk
0:00:11.4]} 31. Qe3 {[%clk 0:00:48.4]} 31... Bd3 {[%clk 0:00:10.6]} 32. Rd1
{[%clk 0:00:40.8]} 32... Qf5 {[%clk 0:00:07.4]} 33. g4 {[%clk 0:00:32.7]} 33...
hxg4 {[%clk 0:00:07.1]} 34. fxg4 {[%clk 0:00:33.6]} 34... Qd5 {[%clk 0:00:06.3]}
35. Rcd2 {[%clk 0:00:30]} 35... Bxc3+ {[%clk 0:00:02.6]} 36. Kxc3 {[%clk
0:00:30.9]} 36... Rc6+ {[%clk 0:00:01]} 37. Bxc6 {[%clk 0:00:30.2]} 37... Qxc6+
{[%clk 0:00:01.9]} 38. Kxd3 {[%clk 0:00:30.2]} 38... Qb5+ {[%clk 0:00:02.1]} 39.
Kc2 {[%clk 0:00:30.6]} 39... Qc6+ {[%clk 0:00:02.1]} 40. Qc3 {[%clk 0:00:30.5]}
40... Qe4+ {[%clk 0:00:02]} 41. Kb2 {[%clk 0:00:31]} 1-0

[Event "Early-Titled-Tuesday-Blitz-February-27-2024"]
[Site "Chess.com"]
[Date "2024.02.27"]
[Round "4"]
[White "Juicy_Fork"]
[Black "romulocardoso"]
[Result "1/2-1/2"]
[WhiteElo "2516"]
[BlackElo "2331"]
[TimeControl "180+1"]
[EndTime "8:38:08 PST"]
[Termination "Game drawn by repetition"]

1. e4 {[%clk 0:02:58.3]} 1... c5 {[%clk 0:03:00.4]} 2. Nf3 {[%clk 0:02:57.8]}
2... g6 {[%clk 0:03:01]} 3. d4 {[%clk 0:02:56.7]} 3... cxd4 {[%clk 0:03:01.9]}
4. Nxd4 {[%clk 0:02:57.6]} 4... Nc6 {[%clk 0:03:02.5]} 5. Nc3 {[%clk 0:02:51.9]}
5... Bg7 {[%clk 0:03:02.7]} 6. Be3 {[%clk 0:02:51.7]} 6... Nf6 {[%clk
0:03:03.3]} 7. Bc4 {[%clk 0:02:47.9]} 7... O-O {[%clk 0:03:03.4]} 8. Bb3 {[%clk
0:02:44.2]} 8... Ng4 {[%clk 0:03:02.2]} 9. Qxg4 {[%clk 0:02:35.7]} 9... Nxd4
{[%clk 0:03:01.8]} 10. Qd1 {[%clk 0:02:35.6]} 10... e5 {[%clk 0:03:01.7]} 11.
O-O {[%clk 0:02:03.5]} 11... d6 {[%clk 0:03:01.1]} 12. Nd5 {[%clk 0:01:59.4]}
12... Be6 {[%clk 0:03:00.2]} 13. c3 {[%clk 0:01:59.5]} 13... Nxb3 {[%clk
0:03:00.3]} 14. axb3 {[%clk 0:02:00.1]} 14... f5 {[%clk 0:02:47]} 15. Bxa7
{[%clk 0:01:54.5]} 15... fxe4 {[%clk 0:02:43.6]} 16. Qd2 {[%clk 0:01:41.8]}
16... Qh4 {[%clk 0:02:25.1]} 17. Nc7 {[%clk 0:01:32.4]} 17... Bh3 {[%clk
0:01:25.2]} 18. gxh3 {[%clk 0:01:20.5]} 18... Bh6 {[%clk 0:01:25.1]} 19. Qd5+
{[%clk 0:01:15.4]} 19... Kh8 {[%clk 0:01:23.7]} 20. Nxa8 {[%clk 0:01:07]} 20...
Qxh3 {[%clk 0:01:23.1]} 21. Qxd6 {[%clk 0:01:04]} 21... Qg4+ {[%clk 0:00:39.6]}
22. Kh1 {[%clk 0:01:00.6]} 22... Qf3+ {[%clk 0:00:40]} 23. Kg1 {[%clk
0:01:00.7]} 23... Rf5 {[%clk 0:00:19.9]} 24. Qd8+ {[%clk 0:00:39.5]} 24... Kg7
{[%clk 0:00:19.4]} 25. Qe7+ {[%clk 0:00:23.9]} 25... Kg8 {[%clk 0:00:18]} 26.
Qd8+ {[%clk 0:00:10.6]} 26... Kg7 {[%clk 0:00:16.1]} 27. Qe7+ {[%clk 0:00:10.3]}
27... Kg8 {[%clk 0:00:16.3]} 28. Be3 {[%clk 0:00:07.9]} 28... Qg4+ {[%clk
0:00:13]} 29. Kh1 {[%clk 0:00:08.1]} 29... Qf3+ {[%clk 0:00:11.5]} 30. Kg1
{[%clk 0:00:08.3]} 30... Qg4+ {[%clk 0:00:05.4]} 31. Kh1 {[%clk 0:00:08.3]}
31... Qf3+ {[%clk 0:00:04.4]} 32. Kg1 {[%clk 0:00:08.2]} 1/2-1/2

[Event "Early-Titled-Tuesday-Blitz-February-27-2024"]
[Site "Chess.com"]
[Date "2024.02.27"]
[Round "4"]
[White "Sanan_Sjugirov"]
[Black "PavelShkapenko"]
[Result "1-0"]
[WhiteElo "2980"]
[BlackElo "2762"]
[TimeControl "180+1"]
[EndTime "8:38:10 PST"]
[Termination "Sanan_Sjugirov won by checkmate"]

1. e4 {[%clk 0:03:00.9]} 1... e5 {[%clk 0:02:55.8]} 2. Nf3 {[%clk 0:03:00.4]}
2... Nc6 {[%clk 0:02:55.5]} 3. Bb5 {[%clk 0:03:00.2]} 3... Bc5 {[%clk
0:02:54.1]} 4. O-O {[%clk 0:02:54.7]} 4... d6 {[%clk 0:02:53.9]} 5. d4 {[%clk
0:02:43.9]} 5... exd4 {[%clk 0:02:53]} 6. Bxc6+ {[%clk 0:02:39.3]} 6... bxc6
{[%clk 0:02:52]} 7. Nxd4 {[%clk 0:02:40.2]} 7... Ne7 {[%clk 0:02:52.3]} 8. Bg5
{[%clk 0:02:21.7]} 8... f6 {[%clk 0:02:44.1]} 9. Bh4 {[%clk 0:02:21.2]} 9... O-O
{[%clk 0:02:44.1]} 10. Nc3 {[%clk 0:02:19]} 10... Kh8 {[%clk 0:02:31.3]} 11. Re1
{[%clk 0:02:17]} 11... Bxd4 {[%clk 0:02:27.7]} 12. Qxd4 {[%clk 0:02:16.7]} 12...
Ng6 {[%clk 0:02:28.2]} 13. Bg3 {[%clk 0:02:15.7]} 13... f5 {[%clk 0:02:28.8]}
14. exf5 {[%clk 0:02:13.8]} 14... Bxf5 {[%clk 0:02:29.7]} 15. Re2 {[%clk
0:02:06.1]} 15... Qd7 {[%clk 0:02:29.4]} 16. Rae1 {[%clk 0:02:05]} 16... Rae8
{[%clk 0:01:58.7]} 17. Qxa7 {[%clk 0:01:58.1]} 17... Bxc2 {[%clk 0:01:55.8]} 18.
Qd4 {[%clk 0:01:17.7]} 18... Rxe2 {[%clk 0:01:41.8]} 19. Rxe2 {[%clk 0:01:18.6]}
19... Re8 {[%clk 0:01:37.9]} 20. Qd2 {[%clk 0:01:15.7]} 20... Bf5 {[%clk
0:01:34.7]} 21. a4 {[%clk 0:01:14]} 21... h5 {[%clk 0:01:29.8]} 22. h4 {[%clk
0:01:11.6]} 22... Kh7 {[%clk 0:00:58]} 23. Qg5 {[%clk 0:00:57.1]} 23... Rxe2
{[%clk 0:00:39.9]} 24. Qxh5+ {[%clk 0:00:56.2]} 24... Kg8 {[%clk 0:00:40.5]} 25.
Qxe2 {[%clk 0:00:56.6]} 25... c5 {[%clk 0:00:39.4]} 26. a5 {[%clk 0:00:54.5]}
26... Qc6 {[%clk 0:00:37.6]} 27. a6 {[%clk 0:00:51.2]} 27... Kf7 {[%clk
0:00:37.9]} 28. h5 {[%clk 0:00:38.1]} 28... Ne7 {[%clk 0:00:37.5]} 29. Bh4
{[%clk 0:00:37.8]} 29... Nc8 {[%clk 0:00:35.6]} 30. h6 {[%clk 0:00:30.2]} 30...
gxh6 {[%clk 0:00:31.5]} 31. Qh5+ {[%clk 0:00:30.6]} 31... Bg6 {[%clk 0:00:29.5]}
32. Qxh6 {[%clk 0:00:26.6]} 32... Qxa6 {[%clk 0:00:29]} 33. Qh8 {[%clk
0:00:25.7]} 33... Bd3 {[%clk 0:00:15.8]} 34. Qf6+ {[%clk 0:00:24.2]} 34... Kg8
{[%clk 0:00:16.1]} 35. Nd5 {[%clk 0:00:20.4]} 35... Qa2 {[%clk 0:00:12.1]} 36.
Qe6+ {[%clk 0:00:18.9]} 36... Kf8 {[%clk 0:00:09.8]} 37. Qxc8+ {[%clk
0:00:18.7]} 37... Kf7 {[%clk 0:00:10.2]} 38. Qxc7+ {[%clk 0:00:18]} 38... Ke6
{[%clk 0:00:09.9]} 39. Qe7+ {[%clk 0:00:17.9]} 39... Kf5 {[%clk 0:00:08.9]} 40.
Qf6+ {[%clk 0:00:16.6]} 40... Ke4 {[%clk 0:00:07.8]} 41. Nc3# {[%clk 0:00:16.5]}
1-0